[Event "*** Titled Tuesday Blitz"]
[Site "Chess.com"]
[Date "2021.02.02"]
[Round "3"]
[White "mjray79"]
[Black "joshdaruca"]
[Result "0-1"]
[WhiteElo "2507"]
[BlackElo "2740"]
[TimeControl "180+1"]
[EndTime "10:31:59 PST"]
[Termination "joshdaruca won by checkmate"]

1. d4 {[%clk 0:03:00.9]} 1... Nf6 {[%clk 0:02:59.5]} 2. c4 {[%clk 0:03:00.9]}
2... e6 {[%clk 0:02:59.5]} 3. g3 {[%clk 0:03:00.8]} 3... d5 {[%clk 0:02:59.1]}
4. Bg2 {[%clk 0:03:00.4]} 4... Bb4+ {[%clk 0:02:59.6]} 5. Bd2 {[%clk 0:03:00.2]}
5... Be7 {[%clk 0:03:00.1]} 6. Nf3 {[%clk 0:03:00.2]} 6... O-O {[%clk
0:03:00.5]} 7. O-O {[%clk 0:03:00.5]} 7... c6 {[%clk 0:02:59.7]} 8. Qc2 {[%clk
0:03:00.5]} 8... Nbd7 {[%clk 0:02:58.6]} 9. Bg5 {[%clk 0:02:56.4]} 9... b5
{[%clk 0:02:53.2]} 10. b3 {[%clk 0:02:49]} 10... bxc4 {[%clk 0:02:52.2]} 11.
bxc4 {[%clk 0:02:48.9]} 11... Ba6 {[%clk 0:02:52.9]} 12. Nbd2 {[%clk 0:02:46.1]}
12... Rb8 {[%clk 0:02:40.2]} 13. Qa4 {[%clk 0:02:39.2]} 13... Rb6 {[%clk
0:02:27.7]} 14. c5 {[%clk 0:02:31.2]} 14... Bb5 {[%clk 0:02:26.7]} 15. Qxa7
{[%clk 0:02:30.7]} 15... Ra6 {[%clk 0:02:26.8]} 16. Qb7 {[%clk 0:02:26.8]} 16...
Ra4 {[%clk 0:02:24.4]} 17. Rfb1 {[%clk 0:02:15.3]} 17... h6 {[%clk 0:02:19]} 18.
Bxf6 {[%clk 0:02:12.8]} 18... Bxf6 {[%clk 0:02:15.2]} 19. e3 {[%clk 0:02:05.4]}
19... Qc8 {[%clk 0:02:09.3]} 20. Qxc8 {[%clk 0:01:51.1]} 20... Rxc8 {[%clk
0:02:10.2]} 21. Bf1 {[%clk 0:01:51.6]} 21... Bxf1 {[%clk 0:02:07.8]} 22. Kxf1
{[%clk 0:01:52.5]} 22... Rca8 {[%clk 0:02:07.4]} 23. Rb2 {[%clk 0:01:40.1]}
23... Nxc5 {[%clk 0:02:07.3]} 24. Rc2 {[%clk 0:01:40.2]} 24... Nd7 {[%clk
0:02:00.8]} 25. Rxc6 {[%clk 0:01:36]} 25... Rxa2 {[%clk 0:02:00.7]} 26. Rxa2
{[%clk 0:01:36.9]} 26... Rxa2 {[%clk 0:02:01]} 27. Rc8+ {[%clk 0:01:36.4]} 27...
Nf8 {[%clk 0:01:58.3]} 28. Nb3 {[%clk 0:01:30]} 28... g5 {[%clk 0:01:58]} 29.
Nc5 {[%clk 0:01:27.9]} 29... Kg7 {[%clk 0:01:58.1]} 30. g4 {[%clk 0:01:24.3]}
30... Ra7 {[%clk 0:01:51]} 31. Nd3 {[%clk 0:01:18.2]} 31... Ng6 {[%clk
0:01:50.2]} 32. Kg2 {[%clk 0:01:17.3]} 32... Ra3 {[%clk 0:01:47.8]} 33. Nc5
{[%clk 0:01:13.7]} 33... Be7 {[%clk 0:01:45.2]} 34. Rc7 {[%clk 0:01:08.6]} 34...
Bxc5 {[%clk 0:01:45.3]} 35. Rxc5 {[%clk 0:01:09.1]} 35... Ra7 {[%clk 0:01:40]}
36. Kg3 {[%clk 0:01:05.2]} 36... Rd7 {[%clk 0:01:39.4]} 37. Rb5 {[%clk
0:01:01.6]} 37... f5 {[%clk 0:01:38.3]} 38. Rb6 {[%clk 0:00:56.7]} 38... f4+
{[%clk 0:01:37.3]} 39. Kg2 {[%clk 0:00:57]} 39... Kf6 {[%clk 0:01:33.6]} 40. h4
{[%clk 0:00:31.7]} 40... fxe3 {[%clk 0:01:11.1]} 41. hxg5+ {[%clk 0:00:23.8]}
41... hxg5 {[%clk 0:01:12]} 42. fxe3 {[%clk 0:00:24.1]} 42... Rc7 {[%clk
0:01:10.2]} 43. Kg3 {[%clk 0:00:23.6]} 43... Rc3 {[%clk 0:01:10.4]} 44. Kf2
{[%clk 0:00:21.5]} 44... Rc2+ {[%clk 0:01:10.9]} 45. Kg3 {[%clk 0:00:21.5]}
45... Re2 {[%clk 0:01:11.2]} 46. Rb3 {[%clk 0:00:20.3]} 46... Ne7 {[%clk
0:01:10.5]} 47. Ng1 {[%clk 0:00:19.4]} 47... Rc2 {[%clk 0:01:08.4]} 48. Kf3
{[%clk 0:00:16.9]} 48... Nc8 {[%clk 0:01:08]} 49. Nh3 {[%clk 0:00:11.6]} 49...
Nd6 {[%clk 0:01:06.3]} 50. Nf2 {[%clk 0:00:11.7]} 50... Nc4 {[%clk 0:01:05.8]}
51. Rd3 {[%clk 0:00:09.5]} 51... Nd2+ {[%clk 0:01:05.2]} 52. Kg3 {[%clk
0:00:07.9]} 52... Nf1+ {[%clk 0:01:04.3]} 53. Kf3 {[%clk 0:00:08.2]} 53... Nd2+
{[%clk 0:01:00]} 54. Kg3 {[%clk 0:00:08]} 54... e5 {[%clk 0:00:59.5]} 55. dxe5+
{[%clk 0:00:07.5]} 55... Kxe5 {[%clk 0:01:00.4]} 56. Ra3 {[%clk 0:00:06]} 56...
Nc4 {[%clk 0:00:58.7]} 57. Rd3 {[%clk 0:00:03.5]} 57... Re2 {[%clk 0:00:58.9]}
58. Kf3 {[%clk 0:00:03.2]} 58... Re1 {[%clk 0:00:59.5]} 59. Rc3 {[%clk
0:00:02.4]} 59... Nd2+ {[%clk 0:00:58.7]} 60. Kg3 {[%clk 0:00:02.3]} 60... Rg1+
{[%clk 0:00:58.7]} 61. Kh2 {[%clk 0:00:02.1]} 61... Rf1 {[%clk 0:00:58.9]} 62.
Kg2 {[%clk 0:00:01.8]} 62... Rxf2+ {[%clk 0:00:59.2]} 63. Kxf2 {[%clk
0:00:01.2]} 63... Ne4+ {[%clk 0:01:00.1]} 64. Ke2 {[%clk 0:00:02]} 64... Nxc3+
{[%clk 0:01:01]} 65. Kd3 {[%clk 0:00:02.9]} 65... Ne4 {[%clk 0:00:58.7]} 66. Ke2
{[%clk 0:00:02.6]} 66... Nf6 {[%clk 0:00:59]} 67. Kf3 {[%clk 0:00:03.5]} 67...
Ke6 {[%clk 0:00:59.5]} 68. Kg3 {[%clk 0:00:03.1]} 68... Kd6 {[%clk 0:01:00.1]}
69. Kf3 {[%clk 0:00:04]} 69... Ke5 {[%clk 0:01:00.7]} 70. Kg3 {[%clk 0:00:04.3]}
70... Ke4 {[%clk 0:01:01.6]} 71. Kf2 {[%clk 0:00:04.6]} 71... Nxg4+ {[%clk
0:01:02.1]} 72. Ke2 {[%clk 0:00:05.5]} 72... Ne5 {[%clk 0:01:02.9]} 73. Kd2
{[%clk 0:00:06.4]} 73... g4 {[%clk 0:01:03]} 74. Ke2 {[%clk 0:00:07.3]} 74... g3
{[%clk 0:01:03.9]} 75. Kf1 {[%clk 0:00:08.2]} 75... Kf3 {[%clk 0:01:04.1]} 76.
Kg1 {[%clk 0:00:08.1]} 76... Kxe3 {[%clk 0:01:04.5]} 77. Kg2 {[%clk 0:00:08.2]}
77... Kf4 {[%clk 0:01:04.9]} 78. Kh3 {[%clk 0:00:09.1]} 78... d4 {[%clk
0:01:05.6]} 79. Kh4 {[%clk 0:00:10]} 79... g2 {[%clk 0:01:05.4]} 80. Kh5 {[%clk
0:00:10.9]} 80... g1=Q {[%clk 0:01:05.7]} 81. Kh6 {[%clk 0:00:11.8]} 81... Qg6#
{[%clk 0:01:06.3]} 0-1

[Event "*** Titled Tuesday Blitz"]
[Site "Chess.com"]
[Date "2021.02.02"]
[Round "3"]
[White "louis198"]
[Black "ChessFighter1975"]
[Result "0-1"]
[WhiteElo "2590"]
[BlackElo "2422"]
[TimeControl "180+1"]
[EndTime "10:31:59 PST"]
[Termination "ChessFighter1975 won on time"]

1. d4 {[%clk 0:03:00.9]} 1... d6 {[%clk 0:03:00]} 2. c4 {[%clk 0:02:56.9]} 2...
Nf6 {[%clk 0:02:59.5]} 3. Nc3 {[%clk 0:02:48.8]} 3... g6 {[%clk 0:02:58]} 4. e4
{[%clk 0:02:48.6]} 4... Bg7 {[%clk 0:02:58.4]} 5. Nf3 {[%clk 0:02:48.5]} 5...
O-O {[%clk 0:02:58.8]} 6. Be2 {[%clk 0:02:45.4]} 6... Na6 {[%clk 0:02:59.2]} 7.
O-O {[%clk 0:02:46.1]} 7... e5 {[%clk 0:02:59.3]} 8. dxe5 {[%clk 0:02:46.3]}
8... dxe5 {[%clk 0:02:59.2]} 9. Qxd8 {[%clk 0:02:45.5]} 9... Rxd8 {[%clk
0:03:00.1]} 10. Bg5 {[%clk 0:02:45.6]} 10... c6 {[%clk 0:02:59.9]} 11. Rfd1
{[%clk 0:02:45.3]} 11... Bg4 {[%clk 0:02:59]} 12. Rxd8+ {[%clk 0:02:40.8]} 12...
Rxd8 {[%clk 0:02:59.9]} 13. Nxe5 {[%clk 0:02:35.6]} 13... Bxe2 {[%clk
0:02:59.3]} 14. Nxe2 {[%clk 0:02:35.2]} 14... h6 {[%clk 0:02:57.3]} 15. Bxf6
{[%clk 0:02:02.2]} 15... Bxf6 {[%clk 0:02:58.2]} 16. Nf3 {[%clk 0:02:02.7]}
16... Bxb2 {[%clk 0:02:40.2]} 17. Rb1 {[%clk 0:02:01.7]} 17... Bg7 {[%clk
0:02:39.1]} 18. Ng3 {[%clk 0:01:58.3]} 18... Nc5 {[%clk 0:02:36.3]} 19. h4
{[%clk 0:01:58.3]} 19... Rd3 {[%clk 0:02:29.4]} 20. h5 {[%clk 0:01:56]} 20...
Ra3 {[%clk 0:02:07.8]} 21. hxg6 {[%clk 0:01:55.4]} 21... fxg6 {[%clk 0:02:08.7]}
22. e5 {[%clk 0:01:49]} 22... Rxa2 {[%clk 0:02:08]} 23. Rd1 {[%clk 0:01:41]}
23... a5 {[%clk 0:02:07.1]} 24. Nh4 {[%clk 0:00:36.2]} 24... Kf7 {[%clk
0:02:07]} 25. f4 {[%clk 0:00:35.8]} 25... a4 {[%clk 0:02:00.1]} 26. Rd6 {[%clk
0:00:29.4]} 26... a3 {[%clk 0:01:56.4]} 27. Rxg6 {[%clk 0:00:27]} 27... Ra1+
{[%clk 0:01:50.5]} 28. Kh2 {[%clk 0:00:26.8]} 28... a2 {[%clk 0:01:51.4]} 29.
Ngf5 {[%clk 0:00:27.1]} 29... Bf8 {[%clk 0:01:48.8]} 30. Rf6+ {[%clk 0:00:24.3]}
30... Ke8 {[%clk 0:01:45]} 31. Ng6 {[%clk 0:00:22.2]} 31... Nd7 {[%clk
0:01:29.6]} 32. Re6+ {[%clk 0:00:15.4]} 32... Kd8 {[%clk 0:01:29.3]} 33. Nxf8
{[%clk 0:00:10.1]} 33... Nxf8 {[%clk 0:01:30.2]} 34. Rf6 {[%clk 0:00:10.5]}
34... Nd7 {[%clk 0:01:28.2]} 35. Rd6 {[%clk 0:00:09.1]} 35... Kc7 {[%clk
0:01:21.5]} 36. e6 {[%clk 0:00:08.3]} 36... Nf6 {[%clk 0:01:15.5]} 37. e7 {[%clk
0:00:08.1]} 37... Re1 {[%clk 0:01:13.6]} 38. Rxf6 {[%clk 0:00:05.4]} 38... a1=Q
{[%clk 0:01:13.6]} 39. Rf8 {[%clk 0:00:05.6]} 39... Rxe7 {[%clk 0:01:12.5]} 40.
Nxe7 {[%clk 0:00:05.4]} 40... Kb6 {[%clk 0:01:12.7]} 41. Nc8+ {[%clk 0:00:05.2]}
41... Kc7 {[%clk 0:01:11.8]} 42. Ne7 {[%clk 0:00:05.1]} 42... Qa3 {[%clk
0:01:08.9]} 43. Rf7 {[%clk 0:00:04.6]} 43... Kb6 {[%clk 0:01:08]} 44. f5 {[%clk
0:00:05]} 44... Qe3 {[%clk 0:01:04.5]} 45. f6 {[%clk 0:00:04.5]} 45... Qf4+
{[%clk 0:01:04]} 46. Kh3 {[%clk 0:00:04]} 46... h5 {[%clk 0:01:00.9]} 47. Nc8+
{[%clk 0:00:04.8]} 47... Kc5 {[%clk 0:01:00.1]} 48. Ne7 {[%clk 0:00:05.2]} 48...
Qg4+ {[%clk 0:00:59.8]} 49. Kh2 {[%clk 0:00:05.1]} 49... h4 {[%clk 0:00:58.6]}
50. Kh1 {[%clk 0:00:03]} 50... h3 {[%clk 0:00:58]} 51. gxh3 {[%clk 0:00:03]}
51... Qxh3+ {[%clk 0:00:58.9]} 52. Kg1 {[%clk 0:00:03.8]} 52... Qg3+ {[%clk
0:00:59]} 53. Kf1 {[%clk 0:00:03.8]} 53... Qf4+ {[%clk 0:00:59.1]} 54. Ke1
{[%clk 0:00:04.1]} 54... Qxc4 {[%clk 0:00:57.7]} 55. Rf8 {[%clk 0:00:03.4]}
55... Qc3+ {[%clk 0:00:57.5]} 56. Ke2 {[%clk 0:00:03.2]} 56... Qe5+ {[%clk
0:00:57.6]} 57. Kf3 {[%clk 0:00:03]} 57... b5 {[%clk 0:00:57]} 58. Ng6 {[%clk
0:00:03.9]} 58... Qf5+ {[%clk 0:00:56.2]} 59. Nf4 {[%clk 0:00:04.4]} 59... b4
{[%clk 0:00:55.4]} 60. Ke3 {[%clk 0:00:03.6]} 60... b3 {[%clk 0:00:56.3]} 61.
Nd3+ {[%clk 0:00:04]} 61... Kc4 {[%clk 0:00:54]} 62. Nb2+ {[%clk 0:00:02]} 62...
Kc3 {[%clk 0:00:54.1]} 63. Na4+ {[%clk 0:00:02.4]} 63... Kc2 {[%clk 0:00:54.6]}
64. f7 {[%clk 0:00:01.8]} 64... c5 {[%clk 0:00:51.6]} 65. Nxc5 {[%clk
0:00:01.9]} 65... Qxc5+ {[%clk 0:00:51]} 0-1

[Event "*** Titled Tuesday Blitz"]
[Site "Chess.com"]
[Date "2021.02.02"]
[Round "3"]
[White "manipun1"]
[Black "SCIM"]
[Result "1-0"]
[WhiteElo "2250"]
[BlackElo "2409"]
[TimeControl "180+1"]
[EndTime "10:31:59 PST"]
[Termination "manipun1 won on time"]

1. e4 {[%clk 0:02:18.7]} 1... c5 {[%clk 0:02:35.8]} 2. Nf3 {[%clk 0:02:17.7]}
2... e6 {[%clk 0:02:21.3]} 3. c4 {[%clk 0:02:16.5]} 3... Nc6 {[%clk 0:02:19.5]}
4. Nc3 {[%clk 0:02:17.4]} 4... Nf6 {[%clk 0:02:15.4]} 5. Be2 {[%clk 0:02:17.8]}
5... Be7 {[%clk 0:02:09.8]} 6. d4 {[%clk 0:02:17.7]} 6... cxd4 {[%clk
0:02:05.3]} 7. Nxd4 {[%clk 0:02:18.6]} 7... O-O {[%clk 0:02:04.4]} 8. Be3 {[%clk
0:02:18.6]} 8... a6 {[%clk 0:02:02.3]} 9. O-O {[%clk 0:02:17.6]} 9... Qc7 {[%clk
0:02:00.5]} 10. Rc1 {[%clk 0:02:17.5]} 10... Nxd4 {[%clk 0:01:57.7]} 11. Qxd4
{[%clk 0:02:15.6]} 11... d6 {[%clk 0:01:56.4]} 12. f3 {[%clk 0:02:14.7]} 12...
e5 {[%clk 0:01:51.1]} 13. Qd3 {[%clk 0:02:13.9]} 13... Be6 {[%clk 0:01:48]} 14.
Nd5 {[%clk 0:02:11.6]} 14... Bxd5 {[%clk 0:01:45.6]} 15. cxd5 {[%clk 0:02:11.3]}
15... Qa5 {[%clk 0:01:44.5]} 16. Qa3 {[%clk 0:02:00.3]} 16... Qxa3 {[%clk
0:01:42.1]} 17. bxa3 {[%clk 0:02:00.6]} 17... Rac8 {[%clk 0:01:41.7]} 18. Kf2
{[%clk 0:01:57.9]} 18... Nd7 {[%clk 0:01:36.4]} 19. a4 {[%clk 0:01:57.7]} 19...
Nc5 {[%clk 0:01:31.2]} 20. a5 {[%clk 0:01:55.1]} 20... Rc7 {[%clk 0:01:27.8]}
21. Bxc5 {[%clk 0:01:51.9]} 21... dxc5 {[%clk 0:01:28.7]} 22. Bc4 {[%clk
0:01:50.3]} 22... Rd8 {[%clk 0:01:16.6]} 23. Rb1 {[%clk 0:01:49.7]} 23... Bg5
{[%clk 0:01:13.9]} 24. Ke2 {[%clk 0:01:44.7]} 24... Kf8 {[%clk 0:01:10.7]} 25.
Rb3 {[%clk 0:01:39.8]} 25... Ke7 {[%clk 0:01:07.6]} 26. Rfb1 {[%clk 0:01:38.6]}
26... Rdd7 {[%clk 0:01:06.5]} 27. Rb6 {[%clk 0:01:32.8]} 27... Kd8 {[%clk
0:01:00]} 28. d6 {[%clk 0:01:20.2]} 28... Rc8 {[%clk 0:00:56.5]} 29. Bd5 {[%clk
0:01:18.3]} 29... c4 {[%clk 0:00:39.7]} 30. R1b2 {[%clk 0:01:12.4]} 30... c3
{[%clk 0:00:37.9]} 31. Rc2 {[%clk 0:01:11.5]} 31... Rc5 {[%clk 0:00:37.3]} 32.
Bxb7 {[%clk 0:01:05.8]} 32... Bd2 {[%clk 0:00:33.2]} 33. Bxa6 {[%clk 0:00:59.4]}
33... Ra7 {[%clk 0:00:31.5]} 34. Kd3 {[%clk 0:00:46.3]} 34... Rxa5 {[%clk
0:00:28.3]} 35. Bc4 {[%clk 0:00:46.3]} 35... Rc5 {[%clk 0:00:16.4]} 36. Bd5
{[%clk 0:00:43.9]} 36... Kd7 {[%clk 0:00:14.1]} 37. g3 {[%clk 0:00:38.9]} 37...
f6 {[%clk 0:00:12.8]} 38. h4 {[%clk 0:00:36.6]} 38... h6 {[%clk 0:00:11.7]} 39.
g4 {[%clk 0:00:36]} 39... g5 {[%clk 0:00:10.7]} 40. h5 {[%clk 0:00:35.4]} 40...
Rca5 {[%clk 0:00:08.7]} 41. Bc4 {[%clk 0:00:27.8]} 41... Rc5 {[%clk 0:00:08.7]}
42. Bb5+ {[%clk 0:00:24.5]} 42... Kd8 {[%clk 0:00:06.8]} 43. a4 {[%clk
0:00:24.4]} 43... Ra8 {[%clk 0:00:05.1]} 44. d7 {[%clk 0:00:23.9]} 44... Rc7
{[%clk 0:00:04.7]} 45. Rxf6 {[%clk 0:00:23.6]} 45... Rxd7+ {[%clk 0:00:01.9]}
46. Bxd7 {[%clk 0:00:22.7]} 46... Kxd7 {[%clk 0:00:02.8]} 47. Rxh6 {[%clk
0:00:20.1]} 47... Ke7 {[%clk 0:00:03.7]} 48. Rc6 {[%clk 0:00:18.1]} 48... Rd8+
{[%clk 0:00:04.6]} 49. Ke2 {[%clk 0:00:17.4]} 49... Rb8 {[%clk 0:00:02.5]} 50.
Rxd2 {[%clk 0:00:16.4]} 50... cxd2 {[%clk 0:00:01.8]} 51. Kxd2 {[%clk
0:00:17.3]} 1-0

[Event "*** Titled Tuesday Blitz"]
[Site "Chess.com"]
[Date "2021.02.02"]
[Round "3"]
[White "Chessmasterzt"]
[Black "KuzubovYuriy"]
[Result "1/2-1/2"]
[WhiteElo "2624"]
[BlackElo "2839"]
[TimeControl "180+1"]
[EndTime "10:32:00 PST"]
[Termination "Game drawn - insufficient material"]

1. d4 {[%clk 0:03:00.9]} 1... Nf6 {[%clk 0:02:59.5]} 2. c4 {[%clk 0:03:00.4]}
2... e6 {[%clk 0:02:59.7]} 3. g3 {[%clk 0:03:00.6]} 3... d5 {[%clk 0:02:59.1]}
4. Bg2 {[%clk 0:03:00.1]} 4... Bb4+ {[%clk 0:02:58.9]} 5. Nd2 {[%clk 0:02:56.8]}
5... O-O {[%clk 0:02:58.1]} 6. Nf3 {[%clk 0:02:55.5]} 6... b6 {[%clk 0:02:58]}
7. O-O {[%clk 0:02:51.6]} 7... Bb7 {[%clk 0:02:57.7]} 8. Ne5 {[%clk 0:02:39.1]}
8... Nbd7 {[%clk 0:02:48.3]} 9. Qa4 {[%clk 0:02:13.2]} 9... Bd6 {[%clk
0:02:46.4]} 10. Nxd7 {[%clk 0:02:10.1]} 10... Qxd7 {[%clk 0:02:46.2]} 11. Qxd7
{[%clk 0:02:08.5]} 11... Nxd7 {[%clk 0:02:47.1]} 12. cxd5 {[%clk 0:02:04.4]}
12... Bxd5 {[%clk 0:02:32.8]} 13. Ne4 {[%clk 0:01:47.2]} 13... Be7 {[%clk
0:02:06.2]} 14. Bf4 {[%clk 0:01:41.6]} 14... Rac8 {[%clk 0:01:56.7]} 15. Rfc1
{[%clk 0:01:33.2]} 15... f5 {[%clk 0:01:37.4]} 16. Ng5 {[%clk 0:01:10.7]} 16...
Bxg2 {[%clk 0:01:26.5]} 17. Kxg2 {[%clk 0:01:08.5]} 17... Bxg5 {[%clk
0:01:24.4]} 18. Bxg5 {[%clk 0:01:08.9]} 18... h6 {[%clk 0:01:16.7]} 19. Bf4
{[%clk 0:01:05.2]} 19... c5 {[%clk 0:01:14.8]} 20. dxc5 {[%clk 0:00:58.9]} 20...
Nxc5 {[%clk 0:01:12.6]} 21. Bd6 {[%clk 0:00:44.8]} 21... Rfd8 {[%clk 0:01:10.3]}
22. Bxc5 {[%clk 0:00:44.6]} 22... Rxc5 {[%clk 0:01:04.2]} 23. Rxc5 {[%clk
0:00:42.6]} 23... bxc5 {[%clk 0:01:05.1]} 24. Rc1 {[%clk 0:00:36.9]} 24... Rd2
{[%clk 0:01:05.3]} 25. Rxc5 {[%clk 0:00:36.8]} 25... Rxb2 {[%clk 0:01:04.8]} 26.
Ra5 {[%clk 0:00:36.8]} 26... Rxe2 {[%clk 0:01:04.7]} 27. Kf3 {[%clk 0:00:34.3]}
27... Rb2 {[%clk 0:01:02.8]} 28. Rxa7 {[%clk 0:00:34.4]} 28... e5 {[%clk
0:00:57.2]} 29. h4 {[%clk 0:00:33.6]} 29... h5 {[%clk 0:00:38.8]} 30. Ra5 {[%clk
0:00:26.7]} 30... Kh7 {[%clk 0:00:25.4]} 31. Rxe5 {[%clk 0:00:25.5]} 31... Rxa2
{[%clk 0:00:25]} 32. Rxf5 {[%clk 0:00:25.1]} 32... g6 {[%clk 0:00:25.3]} 33.
Rf7+ {[%clk 0:00:24.5]} 33... Kg8 {[%clk 0:00:24.5]} 34. Rb7 {[%clk 0:00:24.5]}
34... Ra4 {[%clk 0:00:24.1]} 35. Rc7 {[%clk 0:00:23.3]} 35... Rb4 {[%clk
0:00:23.9]} 36. Rd7 {[%clk 0:00:23.4]} 36... Ra4 {[%clk 0:00:24]} 37. Rd8+
{[%clk 0:00:23.6]} 37... Kg7 {[%clk 0:00:23.9]} 38. Rd7+ {[%clk 0:00:24.5]}
38... Kf6 {[%clk 0:00:23.7]} 39. Rd6+ {[%clk 0:00:24.2]} 39... Kg7 {[%clk
0:00:24]} 40. Re6 {[%clk 0:00:23.6]} 40... Kf7 {[%clk 0:00:24]} 41. Re4 {[%clk
0:00:23.8]} 41... Ra2 {[%clk 0:00:24]} 42. Ke3 {[%clk 0:00:22.5]} 42... Kf6
{[%clk 0:00:23.6]} 43. f3 {[%clk 0:00:21.5]} 43... Ra3+ {[%clk 0:00:23]} 44. Kf4
{[%clk 0:00:21.6]} 44... Ra6 {[%clk 0:00:23.2]} 45. Rb4 {[%clk 0:00:21.7]} 45...
Rc6 {[%clk 0:00:23.2]} 46. Ke4 {[%clk 0:00:20.3]} 46... Re6+ {[%clk 0:00:23]}
47. Kf4 {[%clk 0:00:20.2]} 47... Rc6 {[%clk 0:00:23]} 48. g4 {[%clk 0:00:20]}
48... hxg4 {[%clk 0:00:22.5]} 49. fxg4 {[%clk 0:00:19.7]} 49... g5+ {[%clk
0:00:22.3]} 50. hxg5+ {[%clk 0:00:18.2]} 50... Kg6 {[%clk 0:00:22.5]} 51. Re4
{[%clk 0:00:17]} 51... Ra6 {[%clk 0:00:21.3]} 52. Rd4 {[%clk 0:00:16.5]} 52...
Rb6 {[%clk 0:00:21.3]} 53. Rd5 {[%clk 0:00:15.8]} 53... Rb4+ {[%clk 0:00:21.1]}
54. Kg3 {[%clk 0:00:15.5]} 54... Rb1 {[%clk 0:00:20.9]} 55. Rf5 {[%clk 0:00:14]}
55... Rg1+ {[%clk 0:00:19.9]} 56. Kf3 {[%clk 0:00:14.1]} 56... Rf1+ {[%clk
0:00:20]} 57. Kg3 {[%clk 0:00:14]} 57... Rxf5 {[%clk 0:00:19.4]} 58. gxf5+
{[%clk 0:00:13.8]} 58... Kxg5 {[%clk 0:00:20.1]} 59. f6 {[%clk 0:00:12.5]} 59...
Kxf6 {[%clk 0:00:20.1]} 1/2-1/2

[Event "*** Titled Tuesday Blitz"]
[Site "Chess.com"]
[Date "2021.02.02"]
[Round "3"]
[White "leoduarte"]
[Black "StockholmMissile"]
[Result "0-1"]
[WhiteElo "2339"]
[BlackElo "2524"]
[TimeControl "180+1"]
[EndTime "10:32:01 PST"]
[Termination "StockholmMissile won on time"]

1. e4 {[%clk 0:03:00.9]} 1... e5 {[%clk 0:02:59.5]} 2. Nf3 {[%clk 0:02:59.7]}
2... Nc6 {[%clk 0:02:59.8]} 3. d4 {[%clk 0:03:00]} 3... exd4 {[%clk 0:02:59.7]}
4. Nxd4 {[%clk 0:03:00.9]} 4... Bc5 {[%clk 0:02:59.7]} 5. Be3 {[%clk 0:03:00.1]}
5... Qf6 {[%clk 0:02:59.1]} 6. c3 {[%clk 0:03:00]} 6... Nge7 {[%clk 0:02:59.2]}
7. Bb5 {[%clk 0:02:59.8]} 7... Bb6 {[%clk 0:02:54.9]} 8. O-O {[%clk 0:02:57.7]}
8... O-O {[%clk 0:02:54.3]} 9. a4 {[%clk 0:02:56.2]} 9... d6 {[%clk 0:02:47.2]}
10. Qd2 {[%clk 0:02:54.5]} 10... Qg6 {[%clk 0:02:40.8]} 11. f3 {[%clk
0:02:53.9]} 11... f5 {[%clk 0:02:23.5]} 12. exf5 {[%clk 0:02:10.9]} 12... Nxf5
{[%clk 0:02:22]} 13. Nxf5 {[%clk 0:02:10.4]} 13... Bxf5 {[%clk 0:02:21.6]} 14.
Bxb6 {[%clk 0:02:06]} 14... axb6 {[%clk 0:02:21.2]} 15. Na3 {[%clk 0:02:04.4]}
15... Ne5 {[%clk 0:01:38.2]} 16. Nc4 {[%clk 0:01:21.4]} 16... Nxc4 {[%clk
0:01:35.5]} 17. Bxc4+ {[%clk 0:01:20.8]} 17... Kh8 {[%clk 0:01:27]} 18. Rfe1
{[%clk 0:01:15.5]} 18... Rfe8 {[%clk 0:01:22.2]} 19. Bd5 {[%clk 0:00:57.8]}
19... c6 {[%clk 0:01:19.5]} 20. Bb3 {[%clk 0:00:57.3]} 20... h6 {[%clk
0:01:03.4]} 21. Rxe8+ {[%clk 0:00:53.2]} 21... Rxe8 {[%clk 0:01:01.9]} 22. Re1
{[%clk 0:00:53.7]} 22... d5 {[%clk 0:00:53.6]} 23. Kf2 {[%clk 0:00:37.8]} 23...
Rxe1 {[%clk 0:00:33.3]} 24. Qxe1 {[%clk 0:00:36.8]} 24... Qg5 {[%clk 0:00:31.5]}
25. Qe3 {[%clk 0:00:28.4]} 25... Qh4+ {[%clk 0:00:29.9]} 26. Kg1 {[%clk
0:00:28]} 26... Bg6 {[%clk 0:00:21.6]} 27. g3 {[%clk 0:00:25.5]} 27... Qf6
{[%clk 0:00:21.5]} 28. Kf2 {[%clk 0:00:23.1]} 28... Qd8 {[%clk 0:00:21.3]} 29.
Qe5 {[%clk 0:00:19.3]} 29... Kh7 {[%clk 0:00:19.3]} 30. f4 {[%clk 0:00:19.4]}
30... Qd7 {[%clk 0:00:14.6]} 31. Qd4 {[%clk 0:00:17.5]} 31... Qh3 {[%clk
0:00:12.5]} 32. Kg1 {[%clk 0:00:16.2]} 32... Be4 {[%clk 0:00:12.6]} 33. Qf2
{[%clk 0:00:12.9]} 33... c5 {[%clk 0:00:12.7]} 34. Bc2 {[%clk 0:00:11.7]} 34...
Qg4 {[%clk 0:00:08.4]} 35. Bxe4+ {[%clk 0:00:06.3]} 35... dxe4 {[%clk
0:00:09.3]} 36. Kg2 {[%clk 0:00:05.7]} 36... Qd1 {[%clk 0:00:08.7]} 37. Qe3
{[%clk 0:00:04]} 37... Qxa4 {[%clk 0:00:08.5]} 38. g4 {[%clk 0:00:02.2]} 38...
Qc2+ {[%clk 0:00:08.1]} 39. Kg3 {[%clk 0:00:02.5]} 39... Qd3 {[%clk 0:00:05.2]}
40. Qxd3 {[%clk 0:00:02]} 40... exd3 {[%clk 0:00:05.4]} 41. Kf3 {[%clk
0:00:02.3]} 41... c4 {[%clk 0:00:05]} 42. Ke3 {[%clk 0:00:02.1]} 42... Kg6
{[%clk 0:00:04.3]} 43. h4 {[%clk 0:00:01.6]} 43... h5 {[%clk 0:00:03.9]} 0-1